bitfinex-derivatives/quotes_BNBF0:USTF0_20250116
["timestamp","ask_amount","ask_price","bid_price","bid_amount"]
[1736989589171,1.90312235,711.23,710.19,6.15361477]
[1736989589368,1.90312235,711.22,710.19,6.15361477]
[1736989589565,1.90312235,711.21,710.19,6.15361477]
[1736989589769,1.90312235,711.2,710.19,6.15361477]
[1736989590069,1.90312235,711.19,710.19,6.15361477]
[1736989590269,1.90312235,711.18,710.19,6.15361477]
[1736989590471,1.90312235,711.17,710.19,6.15361477]
[1736989590670,1.90312235,711.16,710.19,6.15361477]
[1736989590972,1.04975023,711.5,710.19,6.15361477]
[1736989590973,1.90312235,711.15,710.19,6.15361477]
[1736989591174,1.14216894,711.14,710.19,6.15361477]
[1736989591473,1.14258484,711.13,710.19,6.15361477]
[1736989591672,1.04975023,711.5,710.19,6.15361477]
[1736989591873,3.12195402,711.49,710.19,6.15361477]
[1736989592069,3.12195402,711.48,710.19,6.15361477]
[1736989592269,3.12195402,711.47,710.19,6.15361477]
[1736989592573,3.12195402,711.46,710.19,6.15361477]
[1736989592773,0.28104097,711.64,710.19,6.15361477]
[1736989592774,3.12195402,711.45,710.19,6.15361477]
[1736989593073,3.12195402,711.44,710.19,6.15361477]
[1736989593274,3.12195402,711.43,710.19,6.15361477]
[1736989593472,3.12195402,711.42,710.19,6.15361477]
[1736989593667,3.12195402,711.41,710.19,6.15361477]
[1736989593875,3.12195402,711.4,710.19,6.15361477]
[1736989594172,3.12195402,711.39,710.19,6.15361477]
[1736989594370,3.12195402,711.38,710.19,7.45361477]
[1736989594574,3.12195402,711.37,710.19,7.45361477]
[1736989594772,3.12195402,711.36,710.19,7.45361477]
[1736989594972,3.12195402,711.35,710.19,7.45361477]
[1736989595167,3.12195402,711.34,710.19,7.45361477]
[1736989595372,3.12195402,711.33,710.19,7.45361477]
[1736989595566,3.12195402,711.32,710.19,7.45361477]
[1736989595771,3.12195402,711.31,710.19,7.45361477]
[1736989596075,3.12195402,711.3,710.19,7.45361477]
[1736989596270,3.12195402,711.29,710.19,7.45361477]
[1736989596572,3.12195402,711.28,710.19,7.45361477]
[1736989596768,3.12195402,711.27,710.19,7.45361477]
[1736989596975,3.12195402,711.26,710.19,7.45361477]
[1736989597173,3.12195402,711.25,710.19,7.45361477]
[1736989597468,3.12195402,711.24,710.19,7.45361477]
[1736989597674,3.12195402,711.23,710.19,7.45361477]
[1736989597873,3.12195402,711.22,710.19,7.45361477]
[1736989598172,3.12195402,711.21,710.19,7.45361477]
[1736989598374,0.28104097,711.64,710.19,7.45361477]
[1736989598375,3.12195402,711.2,710.19,7.45361477]
[1736989598567,3.12195402,711.19,710.19,7.45361477]
[1736989598772,3.12195402,711.18,710.19,7.45361477]
[1736989598973,3.12195402,711.17,710.19,7.45361477]
[1736989599274,3.12195402,711.16,710.19,7.45361477]
[1736989599473,3.11844399,711.15,710.19,7.45361477]
[1736989599669,3.11844399,711.14,710.19,7.45361477]
[1736989599865,3.11844399,711.13,710.19,7.45361477]
[1736989600065,3.11844399,711.12,710.19,7.45361477]
[1736989600270,3.11844399,711.11,710.19,7.45361477]
[1736989600469,1.90173025,711.1,710.19,7.45361477]
[1736989600673,1.90173025,711.09,710.19,7.45361477]
[1736989600873,1.14128416,711.08,710.19,7.45361477]
[1736989601068,1.90158616,711.07,710.19,7.45361477]
[1736989601273,1.90158616,711.06,710.19,7.45361477]
[1736989601474,1.90158616,711.05,710.19,7.45361477]
[1736989601675,1.90158616,711.04,710.19,7.45361477]
[1736989601876,1.90158616,711.03,710.19,7.45361477]
[1736989602075,1.90158616,711.02,710.19,7.45361477]
[1736989602372,1.14128416,711.01,710.19,7.45361477]
[1736989602576,1.04975023,711.51,710.19,7.45361477]
[1736989602877,3.11687896,711.5,710.19,7.45361477]
[1736989603175,3.11687896,711.49,710.19,7.45361477]
[1736989603374,3.11687896,711.48,710.19,7.45361477]
[1736989603572,3.11687896,711.47,710.19,7.45361477]
[1736989603771,3.39799103,711.46,710.19,7.45361477]
[1736989603970,3.39799499,711.45,710.19,7.45361477]
[1736989604174,3.11687896,711.44,710.19,7.45361477]
[1736989604377,1.04975023,711.8,710.19,7.45361477]
[1736989604378,3.39800289,711.43,710.19,7.45361477]
[1736989604574,3.11687896,711.42,710.19,7.45361477]
[1736989604776,3.11687896,711.41,710.19,7.45361477]
[1736989604969,3.11687896,711.4,710.19,7.45361477]
[1736989605174,3.37535153,711.39,710.19,7.45361477]
[1736989605374,3.37535153,711.38,710.19,7.45361477]
[1736989605574,3.65649917,711.37,710.19,7.45361477]
[1736989605769,3.65650312,711.36,710.19,7.45361477]
[1736989605972,3.3980345,711.35,710.19,7.45361477]
[1736989606173,3.11687896,711.34,710.19,7.172]
[1736989606373,3.39804241,711.33,710.19,7.172]
[1736989606573,3.11687896,711.32,710.19,7.172]
[1736989606770,3.11493344,711.31,710.19,7.172]
[1736989606975,3.11493344,711.3,710.19,7.172]
[1736989607270,3.11350323,711.29,710.19,7.172]
[1736989607476,3.11350323,711.28,710.19,7.172]
[1736989607677,3.11350323,711.27,710.19,7.172]
[1736989607876,3.11350323,711.26,710.19,7.172]
[1736989608078,3.3946983,711.25,710.19,7.172]
[1736989608274,3.39470226,711.24,710.19,7.172]
[1736989608471,3.39470621,711.23,710.19,7.172]
[1736989608673,3.39471017,711.22,710.19,7.172]
[1736989608870,3.11233367,711.21,710.19,7.172]
[1736989609074,3.11233367,711.2,710.19,7.172]
[1736989609271,3.11233367,711.19,710.19,7.172]
[1736989609475,3.11233367,711.18,710.19,7.172]
[1736989609776,3.11233367,711.17,710.19,7.172]
[1736989610075,3.11233367,711.16,710.19,7.172]
[1736989610271,3.11233367,711.15,710.19,7.172]
[1736989610477,3.11233367,711.14,710.19,7.172]
[1736989610669,0.28120694,711.22,710.19,7.172]
[1736989610874,3.10907595,711.21,710.19,7.172]
[1736989611070,0.28120694,711.22,710.19,7.172]
[1736989611071,3.10907595,711.2,710.19,7.172]
[1736989611278,3.10907595,711.19,710.19,7.172]
[1736989611471,3.10907595,711.18,710.19,7.172]
[1736989611779,3.10907595,711.17,710.19,7.172]
[1736989611972,3.10907595,711.16,710.19,7.172]
[1736989612177,3.10907595,711.15,710.19,7.172]
[1736989612476,3.10907595,711.14,710.19,7.172]
[1736989612677,3.10836697,711.13,710.19,7.172]
[1736989612878,3.10836697,711.12,710.19,7.172]
[1736989613175,3.10836697,711.11,710.19,7.172]
[1736989613377,3.10836697,711.1,710.19,7.172]
[1736989613572,3.10836697,711.09,710.19,7.172]
[1736989613777,3.10836697,711.08,710.19,7.172]
[1736989613973,3.10836697,711.07,710.19,7.172]
[1736989614173,3.10836697,711.06,710.19,7.172]
[1736989614379,3.10836697,711.05,710.19,7.172]
[1736989614578,3.10773879,711.04,710.19,7.172]
[1736989614778,3.10773879,711.03,710.19,7.172]
[1736989614973,3.10773879,711.02,710.19,7.172]
[1736989615179,3.10773879,711.01,710.19,7.172]
[1736989615379,3.10773879,711.0,710.19,7.172]
[1736989615580,3.10773879,710.99,710.19,7.172]
[1736989615779,3.10773879,710.98,710.19,7.172]
[1736989615977,3.10773879,710.97,710.19,7.172]
[1736989616178,1.89466847,710.96,710.19,7.172]
[1736989616378,1.89466847,710.95,710.19,7.172]
[1736989616575,1.89250979,710.94,710.19,7.172]
[1736989616774,1.89250979,710.93,710.19,7.172]
[1736989616980,1.89250979,710.92,710.19,7.172]
[1736989617282,1.89250979,710.91,710.19,7.172]
[1736989617581,1.89250979,710.9,710.19,7.172]
[1736989617781,1.89250979,710.89,710.19,7.172]
[1736989617980,0.28120694,711.22,710.19,7.172]
[1736989617981,1.89250979,710.88,710.19,7.172]
[1736989618178,1.89250979,710.87,710.19,7.172]
[1736989618379,1.13573399,710.86,710.19,7.172]
[1736989618580,1.89223962,710.85,710.19,7.172]
[1736989618778,1.89223962,710.84,710.19,7.172]
[1736989619087,1.89223962,710.83,710.19,7.172]
[1736989619382,0.28120694,711.22,710.19,7.172]
[1736989619383,1.13573399,710.82,710.19,7.172]
[1736989619583,0.28120694,711.22,710.19,7.172]
[1736989619584,1.13500794,710.81,710.19,7.172]
[1736989619788,0.28120694,711.22,710.19,7.172]
[1736989619984,3.36017352,711.21,710.19,7.172]
[1736989620187,3.36017352,711.2,710.19,7.172]
[1736989620379,3.36017352,711.19,710.19,7.172]
[1736989620577,3.36017352,711.18,710.19,7.172]
[1736989620782,3.36017352,711.17,710.19,7.172]
[1736989620985,3.10161278,711.16,710.19,8.298]
[1736989621180,3.64140662,711.15,710.19,8.298]
[1736989621381,3.64141058,711.14,710.19,8.298]
[1736989621581,3.36017201,711.13,710.19,8.298]
[1736989621778,3.36017201,711.12,710.19,8.298]
[1736989621980,3.36017201,711.11,710.19,8.298]
[1736989622180,3.36017201,711.1,710.19,8.298]
[1736989622381,3.36017201,711.09,710.19,8.298]
[1736989622583,3.36017201,711.08,710.19,8.298]
[1736989622780,3.10161278,711.07,710.19,8.298]
[1736989622986,3.10161278,711.06,710.19,8.298]
[1736989623187,3.10161278,711.05,710.19,8.298]
[1736989623485,3.10161278,711.04,710.19,8.298]
[1736989623785,3.10161278,711.03,710.19,8.298]
[1736989623980,3.10161278,711.02,710.19,8.298]
[1736989624185,1.89144639,711.01,710.19,8.298]
[1736989624389,1.89144639,711.0,710.19,8.298]
[1736989624586,1.89144639,710.99,710.19,8.298]
[1736989624780,0.28123857,711.14,710.19,8.298]
[1736989624781,1.89144639,710.98,710.19,8.298]
[1736989624980,1.89144639,710.97,710.19,8.298]
[1736989625185,1.89144639,710.96,710.19,8.298]
[1736989625387,1.89144639,710.95,710.19,8.298]
[1736989625587,1.89144639,710.94,710.19,8.298]
[1736989625887,1.89144639,710.93,710.19,8.298]
[1736989626089,1.89067698,710.92,710.19,8.298]
[1736989626288,1.1350924,710.91,710.19,8.298]
[1736989626481,0.28123857,711.14,710.19,8.298]
[1736989626682,3.3571145,711.13,710.19,8.298]
[1736989626886,3.3571145,711.12,710.19,8.298]
[1736989627086,3.3571145,711.11,710.19,8.298]
[1736989627291,0.28123857,711.14,710.19,8.298]
[1736989627292,3.3571145,711.1,710.19,8.298]
[1736989627486,3.3571145,711.09,710.19,8.298]
[1736989627690,3.09863444,711.08,710.19,8.298]
[1736989627991,3.09863444,711.07,710.19,8.298]
[1736989628288,3.09863444,711.06,710.19,8.298]
[1736989628486,3.09863444,711.05,710.19,8.298]
[1736989628684,3.09863444,711.04,710.19,8.298]
[1736989628889,3.09863444,711.03,710.19,8.298]
[1736989629084,1.88963704,711.02,710.19,8.298]
[1736989629286,1.88963704,711.01,710.19,8.298]
[1736989629487,1.88956091,711.0,710.19,8.298]
[1736989629689,1.88956091,710.99,710.19,8.298]
[1736989629885,1.13401367,710.98,710.19,8.298]
[1736989630189,0.28123857,711.14,710.19,8.298]
[1736989631287,1.13442256,711.13,710.19,8.298]
[1736989631493,0.28123857,711.14,710.19,8.298]
[1736989633898,1.13488989,711.13,710.19,8.298]
[1736989634096,1.13488989,711.12,710.19,8.298]
[1736989634295,0.28123857,711.14,710.19,8.298]
[1736989634495,1.89131696,711.13,710.19,8.298]
[1736989634691,1.13503259,711.12,710.19,8.298]
[1736989634899,0.28123857,711.14,710.19,8.298]
[1736989635199,1.89140924,711.13,710.19,8.298]
[1736989635400,0.28123857,711.14,710.19,8.298]
[1736989639101,1.04975023,711.47,710.19,8.298]
[1736989639300,3.10298015,711.46,710.19,8.298]
[1736989639501,3.10298015,711.45,710.19,8.298]
[1736989639702,3.10298015,711.44,710.19,8.298]
[1736989639899,3.10298015,711.43,710.19,8.298]
[1736989640099,3.10298015,711.42,710.19,8.298]
[1736989640400,3.10298015,711.41,710.19,8.298]
[1736989640603,3.10298015,711.4,710.19,8.298]
[1736989640797,1.04975023,711.55,710.19,8.298]
[1736989640798,3.10298015,711.39,710.19,8.298]
[1736989640995,3.10298015,711.38,710.19,8.298]
[1736989641200,3.10298015,711.37,710.19,8.298]
[1736989641398,3.10298015,711.36,710.19,8.298]
[1736989641602,3.10298015,711.35,710.19,8.298]
[1736989641804,3.10298015,711.34,710.19,8.298]
[1736989642001,3.10298015,711.33,710.19,8.298]
[1736989642202,3.10298015,711.32,710.19,8.298]
[1736989642403,1.89230475,711.31,710.19,8.298]
[1736989642704,1.89230475,711.3,710.19,8.298]
[1736989642904,1.89230475,711.29,710.19,8.298]
[1736989643098,1.89230475,711.28,710.19,8.298]
[1736989643299,1.89230475,711.27,710.19,8.298]
[1736989643502,1.13563263,711.26,710.19,8.298]
[1736989643703,1.13563263,711.25,710.19,8.298]
[1736989643904,1.04975023,711.62,710.19,8.298]
[1736989644105,3.64380344,711.61,710.19,8.298]
[1736989644407,3.36275062,711.6,710.19,8.298]
[1736989644599,3.36275062,711.59,710.19,8.298]
[1736989644803,3.36275062,711.58,710.19,8.298]
[1736989645005,3.64381924,711.57,710.19,8.298]
[1736989645200,3.64382319,711.56,710.19,8.298]
[1736989645405,3.10435259,711.55,710.19,8.298]
[1736989645601,3.36350135,711.54,710.19,8.298]
[1736989645805,3.36350135,711.53,710.19,8.298]
[1736989646007,3.36350135,711.52,710.19,8.298]
[1736989646304,3.36350135,711.51,710.19,8.298]
[1736989646507,3.36350135,711.5,710.19,8.298]
[1736989646705,3.36350135,711.49,710.19,8.298]
[1736989646905,3.36350135,711.48,710.19,8.298]
[1736989647108,3.36371586,711.47,710.19,8.298]
[1736989647302,3.10531443,711.46,710.19,8.298]
[1736989647502,3.10531443,711.45,710.19,8.298]
[1736989647705,0.28107257,711.56,710.19,8.298]
[1736989647706,3.10531443,711.44,710.19,8.298]
[1736989647909,3.10531443,711.43,710.19,8.298]
[1736989648106,3.10531443,711.42,710.19,8.298]
[1736989648305,3.10531443,711.41,710.19,8.298]
[1736989648507,3.10531443,711.4,710.19,8.298]
[1736989648707,3.10531443,711.39,710.19,8.298]
[1736989648909,3.10531443,711.38,710.19,8.298]
[1736989649110,3.10592591,711.37,710.19,8.298]
[1736989649412,3.10592591,711.36,710.19,8.298]
[1736989649713,3.10592591,711.35,710.19,8.298]
[1736989649913,3.10592591,711.34,710.19,8.298]
[1736989650113,3.10601276,711.33,710.19,8.298]
[1736989650310,1.89410328,711.32,710.19,8.298]
[1736989650513,1.89410328,711.31,710.2,0.28161081]
[1736989650711,1.13671414,711.3,710.2,0.28161081]
[1736989650912,0.28107257,711.56,710.2,0.28161081]
[1736989651112,3.10622451,711.55,710.2,0.28161081]
[1736989651413,0.28107257,711.56,710.2,0.28161081]
[1736989651615,3.10635782,711.55,710.2,0.28161081]
[1736989651914,3.10635297,711.54,710.2,5.23361081]
[1736989652114,3.10635297,711.53,710.2,5.23361081]
[1736989652309,3.10635297,711.52,710.2,5.23361081]
[1736989652614,3.10635297,711.51,710.2,5.23361081]
[1736989652815,3.10635297,711.5,710.2,5.23361081]
[1736989653009,3.10635297,711.49,710.2,5.23361081]
[1736989653213,3.10635297,711.48,710.2,5.23361081]
[1736989653414,3.10635297,711.47,710.2,5.23361081]
[1736989653611,3.10635297,711.46,710.2,5.23361081]
[1736989653807,3.10635297,711.45,710.2,5.23361081]
[1736989654012,3.10635297,711.44,710.2,5.23361081]
[1736989654213,3.10635297,711.43,710.2,5.23361081]
[1736989654415,3.10635297,711.42,710.2,5.23361081]
[1736989654611,3.10635297,711.41,710.2,5.23361081]
[1736989654812,3.10635297,711.4,710.2,5.23361081]
[1736989655112,3.10643334,711.39,710.2,5.23361081]
[1736989655318,1.89441583,711.38,710.2,5.23361081]
[1736989655521,1.89441583,711.37,710.2,5.23361081]
[1736989655720,1.89441583,711.36,710.2,5.23361081]
[1736989655917,1.89441583,711.35,710.2,5.23361081]
[1736989656115,1.89441583,711.34,710.2,5.23361081]
[1736989656317,1.89441583,711.33,710.2,5.23361081]
[1736989656515,1.89441583,711.32,710.2,5.23361081]
[1736989656717,1.89441583,711.31,710.2,5.23361081]
[1736989656916,0.28107257,711.56,710.2,5.23361081]
[1736989657120,3.10579266,711.55,710.2,5.23361081]
[1736989657321,3.10579266,711.54,710.2,5.23361081]
[1736989657518,3.10579266,711.53,710.2,5.23361081]
[1736989657713,3.10579266,711.52,710.2,5.23361081]
[1736989657919,3.10579266,711.51,710.2,5.23361081]
[1736989658218,0.28107257,711.56,710.2,5.23361081]
[1736989658219,3.10579266,711.5,710.2,5.23361081]
[1736989658518,3.10579266,711.49,710.2,5.23361081]
[1736989658714,3.10579266,711.48,710.2,5.23361081]
[1736989658920,3.10481935,711.47,710.2,5.23361081]
[1736989659121,3.10481935,711.46,710.2,5.23361081]
[1736989659316,1.1363185,711.45,710.2,5.23361081]
[1736989659522,1.89331349,711.44,710.2,5.23361081]
[1736989659721,0.28107257,711.56,710.2,5.23361081]
[1736989659722,1.89331349,711.43,710.2,5.23361081]
[1736989660023,1.89331349,711.42,710.2,5.23361081]
[1736989660225,1.89331349,711.41,710.2,5.23361081]
[1736989660516,1.89331349,711.4,710.2,5.23361081]
[1736989660721,0.28107257,711.56,710.2,5.23361081]
[1736989660722,1.89331349,711.39,710.2,5.23361081]
[1736989661022,1.89296041,711.38,710.2,5.23361081]
[1736989661224,1.13596542,711.37,710.2,5.23361081]
[1736989661525,1.13596542,711.36,710.2,5.23361081]
[1736989661717,0.28107257,711.56,710.2,5.23361081]
[1736989661916,3.1034155,711.55,710.2,5.23361081]
[1736989662120,3.1034155,711.54,710.2,5.23361081]
[1736989662322,3.1034155,711.53,710.2,5.23361081]
[1736989662623,3.1034155,711.52,710.2,5.23361081]
[1736989662821,3.10295644,711.51,710.2,5.23361081]
[1736989663022,1.89229851,711.5,710.2,5.23361081]
[1736989663217,1.89229851,711.49,710.2,6.68361081]
[1736989663416,1.89229851,711.48,710.2,6.68361081]
[1736989663622,1.89229851,711.47,710.2,6.68361081]
[1736989663823,1.89229851,711.46,710.2,6.68361081]
[1736989664122,1.89229851,711.45,710.2,6.68361081]
[1736989664318,1.89229851,711.44,710.2,6.68361081]
[1736989664525,1.89229851,711.43,710.2,6.68361081]
[1736989664724,1.89203806,711.42,710.2,6.68361081]
[1736989664923,1.1356373,711.41,710.2,6.68361081]
[1736989665225,1.1356373,711.4,710.2,6.68361081]
[1736989665424,0.28107257,711.56,710.2,6.68361081]
[1736989665627,3.10146607,711.55,710.2,6.68361081]
[1736989665922,3.10146607,711.54,710.2,6.68361081]
[1736989666120,3.10146607,711.53,710.2,6.68361081]
[1736989666321,3.10146607,711.52,710.2,6.68361081]
[1736989666525,1.89139105,711.51,710.2,6.68361081]
[1736989666821,3.10120477,711.5,710.2,6.68361081]
[1736989667021,1.89126541,711.49,710.2,6.68361081]
[1736989667325,1.89118226,711.48,710.2,6.68361081]
[1736989667618,1.89118226,711.47,710.2,6.68361081]
[1736989667823,1.89118226,711.46,710.2,6.68361081]
[1736989668022,1.89118226,711.45,710.2,6.68361081]
[1736989668224,1.13496891,711.44,710.2,6.68361081]
[1736989668422,1.89105837,711.43,710.2,6.68361081]
[1736989668617,0.28107257,711.56,710.2,6.68361081]
[1736989668618,1.1347967,711.42,710.2,6.68361081]
[1736989668824,1.89090365,711.41,710.2,6.68361081]
[1736989669019,1.1347967,711.4,710.2,6.68361081]
[1736989669223,1.1347967,711.39,710.2,6.68361081]
[1736989669418,0.28107257,711.56,710.2,6.68361081]
[1736989669625,3.35895296,711.55,710.2,6.68361081]
[1736989669827,3.10060338,711.54,710.2,6.68361081]
[1736989670018,3.10060338,711.53,710.2,6.68361081]
[1736989670324,3.10060338,711.52,710.2,6.68361081]
[1736989670623,3.10043636,711.51,710.2,6.68361081]
[1736989670825,1.89076404,711.5,710.2,6.68361081]
[1736989671125,1.89076404,711.49,710.2,6.68361081]
[1736989671325,1.89076404,711.48,710.2,6.68361081]
[1736989671627,1.04975023,711.53,710.2,6.68361081]
[1736989671825,1.89055649,711.52,710.2,6.68361081]
[1736989672027,1.89055649,711.51,710.2,6.68361081]
[1736989672325,0.28107257,711.56,710.2,6.68361081]
[1736989672620,1.89035222,711.55,710.2,6.68361081]
[1736989672822,1.89035222,711.54,710.2,6.68361081]
[1736989673022,1.13447691,711.53,710.2,6.68361081]
[1736989673225,0.28107257,711.56,710.2,6.68361081]
[1736989673429,1.89012805,711.55,710.2,6.68361081]
[1736989673728,1.89012805,711.54,710.2,6.68361081]
[1736989674027,1.13434336,711.53,710.2,6.68361081]
[1736989674229,0.28107257,711.56,710.2,6.68361081]
[1736989674422,1.8900135,711.55,710.2,6.68361081]
[1736989674628,1.13427448,711.54,710.2,6.68361081]
[1736989674826,1.13427448,711.53,710.2,6.68361081]
[1736989675125,0.28107257,711.56,710.2,6.68361081]
[1736989675328,1.8900483,711.55,710.2,6.68361081]
[1736989675520,1.13429502,711.54,710.2,6.68361081]
[1736989675726,0.28107257,711.56,710.2,6.68361081]
[1736989675924,1.89003371,711.55,710.2,6.68361081]
[1736989676124,1.13428668,711.54,710.2,6.68361081]
[1736989676427,0.28107257,711.56,710.2,6.68361081]
[1736989676428,1.13428668,711.53,710.2,6.68361081]
[1736989676629,0.28107257,711.56,710.2,6.68361081]
[1736989676926,1.89012362,711.55,710.2,6.68361081]
[1736989677127,0.28107257,711.56,710.2,6.68361081]
[1736989677128,1.89017785,711.54,710.2,6.68361081]
[1736989677326,1.13434049,711.53,710.2,6.68361081]
[1736989677527,0.28107257,711.56,710.2,6.68361081]
[1736989677826,1.89025929,711.55,710.2,6.68361081]
[1736989678028,0.28107257,711.56,710.2,6.68361081]
[1736989678029,1.13442193,711.54,710.2,6.68361081]
[1736989678229,1.13442193,711.53,710.2,6.68361081]
[1736989678429,1.13442193,711.52,710.2,6.68361081]
[1736989678626,0.28107257,711.56,710.2,6.68361081]
[1736989678923,1.89059864,711.55,710.2,6.68361081]
[1736989679128,0.28107257,711.56,710.2,6.68361081]
[1736989681130,0.28107257,711.56,710.25,1.05385224]
[1736989681626,1.04975023,711.78,710.25,1.05385224]
[1736989681831,3.10137146,711.77,710.25,1.05385224]
[1736989682031,3.10137146,711.76,710.25,1.05385224]
[1736989682231,3.10137146,711.75,710.25,1.05385224]
[1736989682434,3.10137146,711.74,710.25,2.17985224]
[1736989682632,3.10137146,711.73,710.25,6.15385224]
[1736989682932,3.10137146,711.72,710.25,6.15385224]
[1736989683134,3.10137146,711.71,710.25,6.15385224]
[1736989683334,3.10137146,711.7,710.26,1.05385224]
[1736989683533,1.89134453,711.69,710.26,1.05385224]
[1736989683734,1.89134453,711.68,710.26,1.05385224]
[1736989683926,1.89134453,711.67,710.26,1.05385224]
[1736989684132,1.89134453,711.66,710.26,1.05385224]
[1736989684328,1.89134453,711.66,710.25,5.1]
[1736989684329,1.89134453,711.65,710.25,5.1]
[1736989684533,1.89134453,711.64,710.28,0.28157909]
[1736989684732,1.89134453,711.63,710.28,0.28157909]
[1736989684932,1.89134453,711.62,710.28,0.28157909]
[1736989685233,1.89134453,711.61,710.28,0.28157909]
[1736989685435,1.89200579,711.6,710.28,0.28157909]
[1736989685636,1.13547369,711.59,710.28,0.28157909]
[1736989685933,1.04975023,711.83,710.28,0.28157909]
[1736989686132,3.36071445,711.82,710.28,0.28157909]
[1736989686335,1.25970028,712.34,710.28,0.28157909]
[1736989686336,3.10243611,711.81,710.28,0.28157909]
[1736989686534,3.10243611,711.8,710.28,0.28157909]
[1736989686736,3.10243611,711.79,710.28,0.28157909]
[1736989686932,3.10243611,711.78,710.28,0.28157909]
[1736989687133,3.10243611,711.77,710.28,0.28157909]
[1736989687435,3.10354305,711.76,710.28,0.28157909]
[1736989687635,3.10354305,711.75,710.28,0.28157909]
[1736989687836,3.10354305,711.74,710.28,0.28157909]
[1736989688030,3.10354305,711.73,710.28,0.28157909]
[1736989688234,1.25970028,712.36,710.28,0.28157909]
[1736989688235,3.10354305,711.72,710.28,0.28157909]
[1736989688536,3.10354305,711.71,710.28,0.28157909]
[1736989688731,3.10354305,711.7,710.28,0.28157909]
[1736989688929,3.10354305,711.69,710.28,0.28157909]
[1736989689135,1.04975023,711.97,710.28,0.28157909]
[1736989689335,3.38714766,711.96,710.28,0.28157909]
[1736989689535,3.10623301,711.95,710.28,0.28157909]
[1736989689735,3.10623301,711.94,710.28,0.28157909]
[1736989690037,3.10623301,711.93,710.28,0.28157909]
[1736989690234,3.10623301,711.92,710.28,0.28157909]
[1736989690432,3.38716739,711.91,710.28,0.28157909]
[1736989690630,3.38717134,711.9,710.28,0.28157909]
[1736989690836,3.10623301,711.89,710.28,0.28157909]
[1736989691038,3.10623301,711.88,710.28,0.28157909]
[1736989691236,3.10706495,711.87,710.28,0.28157909]
[1736989691437,3.10706495,711.86,710.28,0.28157909]
[1736989691739,3.10706495,711.85,710.28,0.28157909]
[1736989692037,3.10706495,711.84,710.28,0.28157909]
[1736989692238,3.10706495,711.83,710.28,0.28157909]
[1736989692438,3.10706495,711.82,710.28,0.28157909]
[1736989692633,3.10706495,711.81,710.28,0.28157909]
[1736989692831,3.10706495,711.8,710.28,0.28157909]
[1736989693033,3.10706495,711.79,710.28,0.28157909]
[1736989693237,3.10706495,711.78,710.28,0.28157909]
[1736989693436,3.10706495,711.77,710.28,0.28157909]
[1736989693636,3.10706495,711.76,710.28,0.28157909]
[1736989693830,0.28093833,711.9,710.28,0.28157909]
[1736989693831,3.10706495,711.75,710.28,0.28157909]
[1736989694031,3.10706495,711.74,710.28,0.28157909]
[1736989694237,0.28093833,711.9,710.28,0.28157909]
[1736989694238,3.10706495,711.73,710.28,0.28157909]
[1736989694435,3.10706495,711.72,710.28,0.28157909]
[1736989694637,3.10706495,711.71,710.28,0.28157909]
[1736989694831,3.10706495,711.7,710.28,0.28157909]
[1736989695037,3.10706495,711.69,710.28,0.28157909]
[1736989695237,3.10706495,711.68,710.28,0.28157909]
[1736989695540,3.10706495,711.67,710.28,0.28157909]
[1736989695739,3.10706495,711.66,710.28,0.28157909]
[1736989696032,3.10706495,711.65,710.28,0.28157909]
[1736989696235,3.10706495,711.64,710.28,0.28157909]
[1736989696440,3.10706495,711.63,710.28,0.28157909]
[1736989696737,3.10706495,711.62,710.28,0.28157909]
[1736989696937,3.10798727,711.61,710.28,0.28157909]
[1736989697133,3.10798727,711.6,710.28,0.28157909]
[1736989697332,3.10798727,711.59,710.28,0.28157909]
[1736989697535,3.11005602,711.58,710.28,0.28157909]
[1736989697739,3.11005602,711.57,710.28,0.28157909]
[1736989697941,0.28093833,711.9,710.28,0.28157909]
[1736989697942,3.11005602,711.56,710.28,0.28157909]
[1736989698241,3.11005602,711.55,710.28,0.28157909]
[1736989698444,3.11005602,711.54,710.28,0.28157909]
[1736989698737,1.89653227,711.53,710.28,0.28157909]
[1736989698936,1.89662673,711.52,710.28,0.28157909]
[1736989699141,1.89662673,711.51,710.28,0.28157909]
[1736989699341,1.04975023,711.74,710.28,0.28157909]
[1736989699342,1.89662673,711.5,710.28,0.28157909]
[1736989699536,1.89662673,711.49,710.28,0.28157909]
[1736989699736,1.89662673,711.48,710.28,0.28157909]
[1736989699940,1.13807993,711.47,710.28,0.28157909]
[1736989700241,1.13807993,711.46,710.28,0.28157909]
[1736989700440,1.04975023,711.87,710.28,0.28157909]
[1736989700636,3.11091714,711.86,710.28,0.28157909]